[Event "3rd Matrix Cup 2024"]
[Site "New Delhi"]
[Date "2024.04.07"]
[Round "2.1"]
[White "Aabhas Kumar Srivastava"]
[Black "Aronyak Ghosh"]
[Result "0-1"]
[ECO "B15"]
[WhiteElo "1606"]
[BlackElo "2517"]
[Annotator "TA"]
[PlyCount "84"]
[EventDate "2024.04.07"]
[EventType "swiss"]
[EventCountry "IND"]
[SourceTitle "playchess.com"]
[Source "ChessBase"]
[SourceQuality "1"]
[TimeControl "5400+30"]

{[%evp 13,84,23,31,6,6,6,42,24,20,0,13,0,88,0,21,0,30,30,124,124,130,129,123,-209,-210,-275,-254,-314,-187,-219,-218,-219,-205,-207,-217,-219,-216,-227,-178,-171,-175,-197,-188,-216,-188,-227,-226,-231,-228,-304,-270,-527,-480,-508,-472,-472,-476,-452,-431,-609,-585,-5650,-5617,-5597,-5522,-5481,-2141,-29959,-29959,-29967,-29968,-12273,-6502]} 1. e4 {[%emt 0:00:27]} c6 {[%emt 0:01:15]} 2. d4 {[%emt 0:00:09]} d5 {[%emt 0:00:19]} 3. Nc3 {[%emt 0:00:19]} dxe4 {[%emt 0:00:45]} 4. Nxe4 {[%emt 0:00:09]} Nf6 {[%emt 0:00:15]} 5. Nxf6+ {[%emt 0:00:08]} exf6 {[%emt 0:00:06]} 6. c3 {[%emt 0:00:10]} Bd6 {[%emt 0:00:34]} 7. Bd3 {[%emt 0:00:10]} O-O {[%emt 0:00:15]} 8. Nf3 {[%emt 0:00:38]} Re8+ {[%emt 0:02:38]} 9. Be3 {[%emt 0:00:08]} Bg4 {[%emt 0:02:14]} 10. Qc2 {[%emt 0:03:17] White is slightly better.} g6 {[%emt 0:01:26]} 11. h4 {[%emt 0:04:20][%cal Oh4h5]} Bf4 {[%emt 0:06:12]} 12. O-O-O {[%emt 0:01:03]} Qd6 {[%emt 0:01:17]} (12... Bxe3+ $11 13. fxe3 Rxe3) 13. Rde1 {[%emt 0:08:58]} (13. h5 $16 {[%cal Rh5g6] aiming for hxg6.} f5 (13... Bxh5 14. Rxh5 Bxe3+ 15. fxe3 $15) (13... Bxe3+ 14. fxe3 f5 15. hxg6 $16) 14. hxg6 hxg6 (14... Bxe3+ 15. fxe3 hxg6 16. Qf2 $16) 15. Rde1 Bxe3+ 16. fxe3 (16. Rxe3 Rxe3 17. fxe3 Nd7 $11)) 13... Nd7 $11 {[%emt 0:03:40]} 14. Kb1 {[%emt 0:09:34][%cal Oh4h5]} c5 {[%emt 0:04:39]} 15. h5 {[%emt 0:09:37]} Bxe3 {[%emt 0:07:23]} (15... gxh5 $2 {is the wrong capture.} 16. Bxh7+ Kg7 17. Bf5 Bxf3 18. gxf3 Bxe3 19. fxe3 $18) (15... Bxh5 $11 {remains equal.} 16. Rxh5 gxh5) 16. hxg6 $16 {[%emt 0:19:49]} hxg6 {[%emt 0:00:19]} 17. Bxg6 {[%emt 0:04:37]} Bh6 {[%emt 0:09:39]} 18. Rxe8+ {[%emt 0:13:40][%mdl 8192] This costs White the game.} (18. Rxh6 $16 {[%cal Og6f7] is forced if you want to stay better. White threatens Bxf7+! and mate.} Rxe1+ (18... Bxf3 19. Bxf7+ Kxf7 20. Qg6+ Kf8 21. Rh8#) 19. Nxe1) 18... Rxe8 $19 {[%emt 0:00:16]} 19. Rxh6 {[%emt 0:01:41][%cal Og6f7] Strongly threatening Bxf7+!} Bxf3 {[%emt 0:03:13]} ({And not} 19... fxg6 20. Qxg6+ Kf8 21. Rh8+ Ke7 22. Rxe8#) 20. Rh1 {[%emt 0:08:44] Inhibits Re1+.} Bg4 {[%emt 0:05:40]} (20... Bd5 $142 {Threatens to win with ...Qa6.} 21. Bh7+ Kf8) 21. Bxf7+ {[%emt 0:05:29]} Kxf7 {[%emt 0:00:09]} 22. Qh7+ {[%emt 0:00:22]} Kf8 {[%emt 0:05:35]} 23. Qg6 {[%emt 0:00:50] [#] Intending Rh8+ and mate.} Ke7 $1 {[%emt 0:00:40]} 24. Qxg4 {[%emt 0:03:35]} Kd8 {[%emt 0:00:18]} 25. dxc5 {[%emt 0:01:12]} Qxc5 {[%emt 0:00:50]} 26. Rd1 {[%emt 0:00:31]} Qc6 {[%emt 0:00:13]} 27. Ka1 {[%emt 0:00:44]} Kc8 {[%emt 0:01:18]} 28. Qd4 {[%emt 0:00:51]} Nc5 {[%emt 0:01:22][%cal Ob7b6]} 29. Qg4+ {[%emt 0:01:33]} Qe6 {[%emt 0:00:53]} 30. Qd4 {[%emt 0:01:16]} b6 {[%emt 0:00:10]} 31. Rd2 {[%emt 0:01:17]} Qf5 {[%emt 0:05:25]} 32. g3 $2 {[%emt 0:00:37]} (32. f3) 32... Re1+ {[%emt 0:01:09]} 33. Rd1 {[%emt 0:00:17]} Rxd1+ {[%emt 0:00:20]} 34. Qxd1 {[%emt 0:00:05]} Qxf2 {[%emt 0:00:05]} 35. g4 {[%emt 0:00:31]} Qe3 {[%emt 0:00:52]} 36. c4 {[%emt 0:01:05]} (36. a3 $142) 36... Nd3 {[%emt 0:00:14]} 37. Kb1 {[%emt 0:00:29]} Qe1 {[%emt 0:00:26]} 38. Qxe1 {[%emt 0:00:25]} Nxe1 {[%emt 0:00:03]} 39. Kc1 {[%emt 0:00:14]} Nd3+ {[%emt 0:00:10]} (39... Nf3 $142 40. Kc2 Ne5) 40. Kd2 {[%emt 0:00:58]} Nxb2 {[%emt 0:00:27]} 41. Kc3 {[%emt 0:00:25]} Nd1+ {[%emt 0:00:07]} 42. Kd4 {[%emt 0:00:28]} Nf2 {[%emt 0:00:03] Weighted Error Value: White=0.81/Black=0.30.  Loses game:     	White=1     	---        Mistake:       	White=3     	Black=3      Inaccurate:     	White=3     	Black=2      OK:         	White=8     	Black=11     Best:        	White=2     	Black=3      Strong:       	---       	Black=1} 0-1

[Event "3rd Matrix Cup 2024"]
[Site "New Delhi"]
[Date "2024.04.07"]
[Round "2.2"]
[White "Neelash Saha"]
[Black "Ananya Anamika"]
[Result "1-0"]
[ECO "D37"]
[WhiteElo "2464"]
[BlackElo "1606"]
[Annotator "TA"]
[PlyCount "91"]
[EventDate "2024.04.07"]
[EventType "swiss"]
[EventCountry "IND"]
[SourceTitle "playchess.com"]
[Source "ChessBase"]
[SourceQuality "1"]
[TimeControl "5400+30"]

{[%evp 13,91,38,29,36,50,43,80,82,70,67,74,57,103,111,114,104,118,92,122,122,127,111,131,140,133,103,116,78,82,86,77,53,56,45,29,29,82,39,28,30,31,0,161,142,125,133,141,138,210,202,241,241,341,306,489,472,501,450,458,427,587,610,1048,1053,1324,1170,1256,1154,1214,1128,2117,2737,5627,5539,6295,3340,5498,3614,6111,5514]} 1. d4 {[%emt 0:00:07]} d5 {[%emt 0:00:08]} 2. c4 {[%emt 0:00:08]} e6 {[%emt 0:00:07]} 3. Nf3 {[%emt 0:00:18]} Nf6 {[%emt 0:00:04]} 4. Nc3 {[%emt 0:00:07]} Be7 {[%emt 0:00:07]} 5. Bf4 {[%emt 0:00:06]} a6 {[%emt 0:00:31]} 6. e3 {[%emt 0:01:31]} O-O {[%emt 0:00:23]} 7. cxd5 {[%emt 0:01:18]} exd5 {[%emt 0:00:50]} 8. Qc2 {[%emt 0:00:05]} Bg4 {[%emt 0:01:15]} 9. Ne5 {[%emt 0:00:29]} Nc6 {[%emt 0:08:11]} 10. Nxg4 {[%emt 0:02:56] White is better.} Nxg4 {[%emt 0:00:02]} 11. Be2 {[%emt 0:03:53]} Nf6 {[%emt 0:01:03]} 12. Bf3 {[%emt 0:00:08]} Bb4 {[%emt 0:28:33]} (12... Na5 $14) 13. Bg5 $16 {[%emt 0:01:02]} Ne7 {[%emt 0:08:13]} 14. Bxf6 {[%emt 0:01:24]} gxf6 {[%emt 0:00:02]} 15. O-O {[%emt 0:00:09]} Bxc3 {[%emt 0:00:39]} 16. bxc3 {[%emt 0:00:34]} b5 {[%emt 0:01:15]} 17. e4 {[%emt 0:00:07] White has more active pieces.} c6 {[%emt 0:00:55]} 18. Rfe1 {[%emt 0:00:28]} Qd7 {[%emt 0:02:57]} 19. Qd2 {[%emt 0:01:40]} Ng6 {[%emt 0:02:41]} 20. Qh6 {[%emt 0:01:35]} Rae8 {[%emt 0:13:40]} 21. Re3 {[%emt 0:07:55]} f5 {[%emt 0:06:04]} 22. exd5 {[%emt 0:02:37]} cxd5 {[%emt 0:00:26]} 23. h4 {[%emt 0:01:16][%cal Bh2h4,Bh4h5][%mdl 32] [#] Black must now prevent h5.} Rxe3 {[%emt 0:06:23]} 24. fxe3 {[%emt 0:00:06] Threatens to win with h5.} f6 {[%emt 0:02:52]} (24... Rc8 $11) 25. h5 {[%emt 0:01:04]} Ne7 {[%emt 0:02:43]} 26. Kf2 $36 {[%emt 0:00:37][%cal Og2g4][%mdl 2048] White has the initiative.} Qc7 {[%emt 0:13:26]} 27. Rh1 f4 $2 {[#]} (27... Qxc3 $11 {and Black stays safe.} 28. Rh3 Qc2+ 29. Be2 Rf7) 28. Qxf4 (28. exf4 Qxc3 29. Rd1 Qc2+ 30. Kg1 Qxd1+ 31. Bxd1 Nf5 $11) 28... Qxf4 29. exf4 $18 {[%mdl 4096] Endgame. KRB-KRN} Rc8 30. Rc1 b4 (30... Rc4 $16 {might work better.} 31. Bd1 b4) 31. Ke2 (31. Re1 $6 bxc3 32. Ke3 (32. Rxe7 c2 $15) 32... c2 $16) 31... bxc3 ({But not} 31... Rxc3 32. Rxc3 bxc3 33. Kd3) 32. Kd3 c2 (32... a5 $142 33. Rxc3 Rxc3+ 34. Kxc3 Kf7) 33. Rxc2 Rxc2 (33... Rb8 {was called for.} 34. Rc7 Kf8) 34. Kxc2 {KB-KN. White is clearly winning.} Kf8 35. Kb3 Nf5 36. Kc3 (36. Bxd5 Nxd4+ 37. Ka4 Ne2 $18) 36... Ng7 37. g4 (37. Bxd5 Nxh5 38. f5 Ng3 $18) 37... Ne6 38. f5 Nf4 39. Kd2 Ke7 40. Ke3 Nh3 41. Bxd5 Kd6 42. Bb7 a5 43. Bg2 Ng5 44. Kd3 Nf7 45. Kc4 Nd8 {[%emt 0:00:00]} 46. Kb5 {Weighted Error Value: White=0.11 (very precise) /Black=0.39.  Loses game:     	---       	Black=1      Mistake:       	---       	Black=5      Inaccurate:     	White=3     	Black=4      OK:         	White=13    	Black=6      Best:        	---       	Black=4} 1-0

[Event "3rd Matrix Cup 2024"]
[Site "New Delhi"]
[Date "2024.04.07"]
[Round "2.3"]
[White "Garth Pande"]
[Black "Pawar, Harshit"]
[Result "1/2-1/2"]
[ECO "E94"]
[WhiteElo "1606"]
[BlackElo "2146"]
[Annotator "RC"]
[PlyCount "73"]
[EventDate "2024.04.07"]
[EventType "swiss"]
[EventCountry "IND"]
[SourceTitle "playchess.com"]
[Source "ChessBase"]
[SourceQuality "1"]
[TimeControl "5400+30"]

1. d4 {[%emt 0:00:04]} Nf6 {[%emt 0:01:11]} 2. c4 {[%emt 0:00:21]} d6 {[%emt 0:00:06]} 3. Nc3 {[%emt 0:00:08]} g6 {[%emt 0:00:05]} 4. Nf3 {[%emt 0:00:11]} Bg7 {[%emt 0:00:08]} 5. e4 {[%emt 0:00:32]} O-O {[%emt 0:00:08]} 6. Be2 {[%emt 0:00:16]} Nbd7 {[%emt 0:01:36]} 7. O-O {[%emt 0:00:27]} e5 {[%emt 0:00:33]} 8. d5 {[%emt 0:00:29]} Ne8 {[%emt 0:00:36]} 9. Bg5 {[%emt 0:00:47]} f6 {[%emt 0:00:17]} 10. Be3 {[%emt 0:00:18]} f5 {[%emt 0:00:32]} 11. exf5 {[%emt 0:01:33]} gxf5 {[%emt 0:00:10]} 12. Ng5 {[%emt 0:02:50]} Nc5 {[%emt 0:03:19]} 13. f4 {[%emt 0:01:30]} e4 {[%emt 0:03:14]} 14. Bd4 {[%emt 0:01:28]} Qe7 {[%emt 0:02:53]} 15. Qd2 {[%emt 0:08:39]} a5 {[%emt 0:00:50]} 16. Rad1 {[%emt 0:01:05]} Bd7 {[%emt 0:01:53]} 17. Bxg7 {[%emt 0:08:36]} Qxg7 {[%emt 0:00:18]} 18. Rfe1 {[%emt 0:02:19]} Nf6 {[%emt 0:01:29]} 19. Qd4 {[%emt 0:09:17]} Rae8 {[%emt 0:00:42]} 20. Bf1 {[%emt 0:02:39]} h6 {[%emt 0:02:24]} 21. Nh3 {[%emt 0:00:22]} Kh7 {[%emt 0:00:42]} 22. Re3 {[%emt 0:03:25]} Rg8 {[%emt 0:00:57]} 23. Rg3 {[%emt 0:02:13]} Qf7 {[%emt 0:00:15]} 24. Qf2 {[%emt 0:07:10]} Ng4 {[%emt 0:05:15]} 25. Qe1 {[%emt 0:01:38]} Rg7 {[%emt 0:00:13]} 26. Nf2 {[%emt 0:06:47]} Nf6 {[%emt 0:01:07]} 27. Nh3 {[%emt 0:00:38]} Reg8 {[%emt 0:05:52]} 28. Rxg7+ {[%emt 0:02:15]} Qxg7 {[%emt 0:00:54]} 29. Qh4 {[%emt 0:01:04]} Be8 {[%emt 0:00:51]} 30. Ng5+ {[%emt 0:02:14]} Kh8 {[%emt 0:01:00]} 31. Ne6 {[%emt 0:04:15]} Nxe6 {[%emt 0:00:29]} 32. dxe6 {[%emt 0:00:06]} Bh5 {[%emt 0:00:46]} 33. Rd2 {[%emt 0:02:30]} e3 34. Rc2 {[%emt 0:00:30]} Bf3 35. Qh3 {[%emt 0:00:30]} Bc6 36. Qxf5 {[%emt 0:00:30]} Ng4 37. Nd5 {[%emt 0:00:30]} 1/2-1/2

[Event "3rd Matrix Cup 2024"]
[Site "New Delhi"]
[Date "2024.04.07"]
[Round "2.4"]
[White "Srikar G V B"]
[Black "Singh, Arvinder Preet"]
[Result "0-1"]
[ECO "B30"]
[WhiteElo "1605"]
[BlackElo "2064"]
[Annotator "RC"]
[PlyCount "112"]
[EventDate "2024.04.07"]
[EventType "swiss"]
[EventCountry "IND"]
[SourceTitle "playchess.com"]
[Source "ChessBase"]
[SourceQuality "1"]
[TimeControl "5400+30"]

1. e4 {[%emt 0:00:36]} c5 {[%emt 0:00:07]} 2. Nf3 {[%emt 0:00:22]} Nc6 {[%emt 0:00:13]} 3. Bb5 {[%emt 0:00:37]} Nf6 {[%emt 0:00:25]} 4. d3 {[%emt 0:01:28]} Qa5+ {[%emt 0:00:30]} 5. Nc3 {[%emt 0:00:05]} Nd4 {[%emt 0:00:03]} 6. Bc4 {[%emt 0:01:40]} b5 {[%emt 0:00:16]} 7. Bb3 {[%emt 0:00:57]} Nxb3 {[%emt 0:00:31]} 8. cxb3 {[%emt 0:00:07]} d6 {[%emt 0:01:20]} 9. Bd2 {[%emt 0:00:14]} b4 {[%emt 0:01:43]} 10. Ne2 {[%emt 0:00:32]} Qb5 {[%emt 0:01:28]} 11. Bg5 {[%emt 0:04:56]} Ba6 {[%emt 0:04:26]} 12. Nc1 {[%emt 0:02:33]} e6 {[%emt 0:06:29]} 13. O-O {[%emt 0:03:11]} Be7 {[%emt 0:02:02]} 14. Re1 {[%emt 0:00:50]} O-O {[%emt 0:01:16]} 15. e5 {[%emt 0:02:39]} dxe5 {[%emt 0:00:11]} 16. Nxe5 {[%emt 0:00:06]} h6 {[%emt 0:04:51]} 17. Bh4 {[%emt 0:02:55]} Rad8 {[%emt 0:06:06]} 18. Ne2 {[%emt 0:03:46]} Nd5 {[%emt 0:28:50]} 19. Bxe7 {[%emt 0:04:10]} Nxe7 {[%emt 0:02:15]} 20. Qc2 {[%emt 0:00:08]} f6 {[%emt 0:02:45]} 21. Nc4 {[%emt 0:04:18]} Qd7 {[%emt 0:02:32]} 22. Red1 {[%emt 0:02:04]} Nc6 {[%emt 0:03:26]} 23. Qc1 {[%emt 0:06:28]} e5 {[%emt 0:01:17]} 24. Qe3 {[%emt 0:03:35]} Bxc4 {[%emt 0:00:31]} 25. bxc4 {[%emt 0:00:14]} Qe7 {[%emt 0:05:49]} 26. Rd2 {[%emt 0:05:47]} Rfe8 {[%emt 0:03:13]} 27. Rf1 {[%emt 0:02:31]} Qd6 {[%emt 0:02:07]} 28. Qe4 {[%emt 0:00:24]} Qe6 {[%emt 0:04:03]} 29. Qe3 {[%emt 0:02:46]} Nd4 {[%emt 0:00:27]} 30. a3 {[%emt 0:03:00]} a5 {[%emt 0:02:29]} 31. axb4 {[%emt 0:00:49]} axb4 {[%emt 0:00:02]} 32. Nxd4 {[%emt 0:02:02]} Rxd4 {[%emt 0:00:27]} 33. Ra1 {[%emt 0:00:08]} Qd6 {[%emt 0:00:52]} 34. f3 {[%emt 0:00:25]} Rd8 {[%emt 0:00:17]} 35. Rad1 {[%emt 0:00:09]} f5 {[%emt 0:00:42]} 36. b3 {[%emt 0:04:39]} e4 {[%emt 0:00:18]} 37. fxe4 {[%emt 0:00:39]} fxe4 {[%emt 0:00:03]} 38. Re1 {[%emt 0:01:06]} Rxd3 {[%emt 0:01:02]} 39. Rxd3 {[%emt 0:00:16]} exd3 {[%emt 0:00:12]} 40. Rd1 {[%emt 0:00:56]} d2 {[%emt 0:00:37]} 41. Kf2 {[%emt 0:00:56]} Qd3 {[%emt 0:03:29]} 42. Qe6+ {[%emt 0:01:26]} Kh8 {[%emt 0:00:36]} 43. Qe7 {[%emt 0:00:22]} Rd6 {[%emt 0:01:57]} 44. Kg1 {[%emt 0:00:49]} Qd4+ {[%emt 0:01:11]} 45. Kh1 {[%emt 0:00:12]} Qg4 {[%emt 0:00:57]} 46. Qf8+ {[%emt 0:00:31]} Kh7 {[%emt 0:00:03]} 47. Qf1 {[%emt 0:00:06]} Qe4 {[%emt 0:04:31]} 48. h3 {[%emt 0:00:46]} Rf6 {[%emt 0:00:13]} 49. Qg1 {[%emt 0:00:44]} Qe2 {[%emt 0:00:10]} 50. Ra1 {[%emt 0:00:44]} Rf2 {[%emt 0:00:25]} 51. Qb1+ {[%emt 0:00:15]} Kg8 {[%emt 0:00:44]} 52. Qg1 {[%emt 0:00:20]} Rf8 {[%emt 0:02:44]} 53. Rb1 {[%emt 0:05:01]} Re8 {[%emt 0:00:17]} 54. Kh2 {[%emt 0:02:36]} Qe5+ {[%emt 0:00:09]} 55. Kh1 {[%emt 0:01:11]} Qe1 {[%emt 0:00:17]} 56. Rd1 {[%emt 0:00:46]} Qxd1 {[%emt 0:00:20]} 0-1

[Event "3rd Matrix Cup 2024"]
[Site "New Delhi"]
[Date "2024.04.07"]
[Round "2.5"]
[White "Ram Prakash, R."]
[Black "Krishna Kundu"]
[Result "1-0"]
[ECO "B12"]
[WhiteElo "2191"]
[BlackElo "1604"]
[Annotator "RC"]
[PlyCount "85"]
[EventDate "2024.04.07"]
[EventType "swiss"]
[EventCountry "IND"]
[SourceTitle "playchess.com"]
[Source "ChessBase"]
[SourceQuality "1"]
[TimeControl "5400+30"]

1. e4 {[%emt 0:00:57]} c6 {[%emt 0:00:09]} 2. d4 {[%emt 0:00:10]} d5 {[%emt 0:00:06]} 3. e5 {[%emt 0:00:15]} c5 {[%emt 0:00:05]} 4. dxc5 {[%emt 0:00:07]} e6 {[%emt 0:00:05]} 5. a3 {[%emt 0:00:22]} Bxc5 {[%emt 0:00:05]} 6. b4 {[%emt 0:00:07]} Bb6 {[%emt 0:00:05]} 7. Qg4 {[%emt 0:00:18]} Ne7 {[%emt 0:00:05]} 8. Bd3 {[%emt 0:00:17]} Ng6 {[%emt 0:02:02]} 9. Nf3 {[%emt 0:00:08]} f5 {[%emt 0:01:11]} 10. Qh5 {[%emt 0:02:11]} O-O {[%emt 0:03:13]} 11. Ng5 {[%emt 0:03:53]} h6 {[%emt 0:00:22]} 12. Nxe6 {[%emt 0:08:44]} Bxe6 {[%emt 0:00:19]} 13. Qxg6 {[%emt 0:00:08]} Qc8 {[%emt 0:06:17]} 14. Bxh6 {[%emt 0:00:53]} Rf7 {[%emt 0:01:57]} 15. O-O {[%emt 0:08:44]} Nc6 {[%emt 0:05:53]} 16. Bf4 {[%emt 0:00:40]} Bd4 {[%emt 0:01:07]} 17. c3 {[%emt 0:04:53]} Nxe5 {[%emt 0:04:28]} 18. Qg3 {[%emt 0:00:55]} Nxd3 {[%emt 0:00:49]} 19. cxd4 {[%emt 0:00:57]} Qc2 {[%emt 0:09:30]} 20. Nd2 {[%emt 0:00:41]} Rc8 {[%emt 0:01:41]} 21. Nf3 {[%emt 0:00:26]} Rc3 {[%emt 0:04:02]} 22. Bd2 {[%emt 0:02:17]} f4 {[%emt 0:06:29]} 23. Qh4 {[%emt 0:00:13]} Rc6 {[%emt 0:01:49]} 24. b5 {[%emt 0:01:17]} Rc8 {[%emt 0:01:54]} 25. Ng5 {[%emt 0:03:45]} Qxd2 {[%emt 0:03:13]} 26. Qh7+ {[%emt 0:00:14]} Kf8 {[%emt 0:00:12]} 27. Nxe6+ {[%emt 0:00:25]} Ke7 {[%emt 0:00:06]} 28. Ng5 {[%emt 0:00:46]} Rc1 {[%emt 0:02:09]} 29. Raxc1 {[%emt 0:00:20]} Nxc1 {[%emt 0:00:19]} 30. Qg6 {[%emt 0:00:51]} Ne2+ {[%emt 0:02:27]} 31. Kh1 {[%emt 0:00:06]} Rf8 {[%emt 0:01:00]} 32. Qxg7+ {[%emt 0:00:31]} Ke8 {[%emt 0:00:13]} 33. Qe5+ {[%emt 0:00:10]} Kd7 {[%emt 0:01:18]} 34. Qxd5+ {[%emt 0:00:08]} Ke7 {[%emt 0:00:22]} 35. Qxb7+ {[%emt 0:00:31]} Ke8 {[%emt 0:00:24]} 36. Qb8+ {[%emt 0:00:41]} Ke7 {[%emt 0:00:09]} 37. Qxa7+ {[%emt 0:00:04]} Ke8 {[%emt 0:00:12]} 38. Qb8+ {[%emt 0:00:49]} Ke7 {[%emt 0:00:21]} 39. Qe5+ {[%emt 0:00:26]} Kd7 {[%emt 0:00:20]} 40. Ne4 {[%emt 0:01:00]} Qa2 {[%emt 0:00:50]} 41. Nc5+ {[%emt 0:00:09]} Kc8 {[%emt 0:00:23]} 42. b6 {[%emt 0:00:19]} Ng3+ {[%emt 0:01:05]} 43. fxg3 {[%emt 0:00:08]} 1-0

[Event "3rd Matrix Cup 2024"]
[Site "New Delhi"]
[Date "2024.04.07"]
[Round "2.6"]
[White "Ahaan Alsisaria"]
[Black "Ishvi Aggarwal"]
[Result "0-1"]
[ECO "D37"]
[WhiteElo "1604"]
[BlackElo "1959"]
[Annotator "RC"]
[PlyCount "68"]
[EventDate "2024.04.07"]
[EventType "swiss"]
[EventCountry "IND"]
[SourceTitle "playchess.com"]
[Source "ChessBase"]
[SourceQuality "1"]
[TimeControl "5400+30"]

1. d4 {[%emt 0:00:04]} d5 {[%emt 0:09:11]} 2. c4 {[%emt 0:01:59]} e6 {[%emt 0:00:05]} 3. e3 {[%emt 0:01:23]} Nf6 {[%emt 0:00:18]} 4. Nc3 {[%emt 0:01:16]} Be7 {[%emt 0:00:13]} 5. Nf3 {[%emt 0:02:31]} O-O {[%emt 0:00:15]} 6. Bd3 {[%emt 0:01:42]} dxc4 {[%emt 0:00:30]} 7. Bxc4 {[%emt 0:01:41]} a6 {[%emt 0:00:04]} 8. a3 {[%emt 0:05:02]} b5 {[%emt 0:00:11]} 9. Bd3 {[%emt 0:00:07]} Bb7 {[%emt 0:00:21]} 10. b4 {[%emt 0:03:55]} a5 {[%emt 0:04:48]} 11. bxa5 {[%emt 0:03:39]} c6 {[%emt 0:10:05]} 12. O-O {[%emt 0:03:03]} Rxa5 {[%emt 0:00:33]} 13. Bb2 {[%emt 0:02:56]} Nd5 {[%emt 0:06:54]} 14. Nxd5 {[%emt 0:04:02]} exd5 {[%emt 0:02:17]} 15. Ne5 {[%emt 0:04:45]} Nd7 {[%emt 0:02:33]} 16. f4 {[%emt 0:02:57]} c5 {[%emt 0:04:36]} 17. Rf3 {[%emt 0:01:44]} Nf6 {[%emt 0:09:52]} 18. Rh3 {[%emt 0:03:41]} g6 {[%emt 0:10:29]} 19. dxc5 {[%emt 0:04:44]} Bxc5 {[%emt 0:01:17]} 20. Ng4 {[%emt 0:01:17]} Nxg4 {[%emt 0:03:16]} 21. Qxg4 {[%emt 0:00:18]} f5 {[%emt 0:00:21]} 22. Qd1 {[%emt 0:06:08]} Qb6 {[%emt 0:06:14]} 23. Kf2 {[%emt 0:03:29]} Ra4 {[%emt 0:04:33]} 24. Be5 {[%emt 0:01:53]} Rfa8 {[%emt 0:04:56]} 25. Bxf5 {[%emt 0:03:44]} Rxa3 {[%emt 0:09:46]} 26. Rxa3 {[%emt 0:08:16]} Rxa3 {[%emt 0:00:13]} 27. Bd3 {[%emt 0:01:28]} Ra2+ {[%emt 0:02:36]} 28. Be2 {[%emt 0:00:37]} b4 {[%emt 0:00:22]} 29. Kf1 {[%emt 0:02:26]} Bxe3 {[%emt 0:08:11]} 30. Qb1 {[%emt 0:02:57]} b3 {[%emt 0:00:00]} 31. Bb2 {[%emt 0:04:58]} Ba6 {[%emt 0:00:00]} 32. Bxa6 {[%emt 0:01:27]} Qxa6+ {[%emt 0:00:00]} 33. Ke1 {[%emt 0:00:11]} Qa5+ {[%emt 0:00:00]} 34. Kf1 {[%emt 0:00:06]} Qd8 {[%emt 0:00:00]} 0-1

[Event "3rd Matrix Cup 2024"]
[Site "New Delhi"]
[Date "2024.04.07"]
[Round "2.7"]
[White "Shubhi Gupta"]
[Black "Singh Myra"]
[Result "1/2-1/2"]
[ECO "D03"]
[WhiteElo "1953"]
[BlackElo "1600"]
[Annotator "RC"]
[PlyCount "92"]
[EventDate "2024.04.07"]
[EventType "swiss"]
[EventCountry "IND"]
[SourceTitle "playchess.com"]
[Source "ChessBase"]
[SourceQuality "1"]
[TimeControl "5400+30"]

1. d4 {[%emt 0:01:28]} d5 {[%emt 0:00:04]} 2. Nf3 {[%emt 0:00:25]} Nf6 {[%emt 0:00:07]} 3. Bg5 {[%emt 0:00:50]} e6 {[%emt 0:00:24]} 4. e3 {[%emt 0:00:48]} Be7 {[%emt 0:00:08]} 5. Nbd2 {[%emt 0:00:11]} Nbd7 {[%emt 0:00:29]} 6. Bd3 {[%emt 0:00:24]} h6 {[%emt 0:01:13]} 7. Bh4 {[%emt 0:00:13]} c5 {[%emt 0:03:38]} 8. c3 {[%emt 0:01:19]} b6 {[%emt 0:00:59]} 9. O-O {[%emt 0:00:45]} O-O {[%emt 0:00:16]} 10. Ne5 {[%emt 0:00:26]} Nxe5 {[%emt 0:03:03]} 11. dxe5 {[%emt 0:00:08]} Nd7 {[%emt 0:00:35]} 12. Bg3 {[%emt 0:02:32]} Bh4 {[%emt 0:08:07]} 13. f4 {[%emt 0:03:35]} Bxg3 {[%emt 0:02:44]} 14. hxg3 {[%emt 0:00:07]} Bb7 {[%emt 0:01:39]} 15. g4 {[%emt 0:01:15]} f6 {[%emt 0:05:13]} 16. exf6 {[%emt 0:02:03]} Qxf6 {[%emt 0:00:43]} 17. Nf3 {[%emt 0:00:48]} Qe7 {[%emt 0:08:45]} 18. g5 {[%emt 0:12:29]} hxg5 {[%emt 0:00:44]} 19. fxg5 {[%emt 0:02:40]} e5 {[%emt 0:01:14]} 20. e4 {[%emt 0:00:35]} c4 {[%emt 0:01:02]} 21. Be2 {[%emt 0:01:29]} Qc5+ {[%emt 0:01:35]} 22. Kh2 {[%emt 0:01:29]} Rad8 {[%emt 0:01:31]} 23. Qe1 {[%emt 0:07:44]} Qe3 {[%emt 0:05:09]} 24. exd5 {[%emt 0:00:31]} Bxd5 {[%emt 0:00:29]} 25. Rd1 {[%emt 0:00:38]} Nc5 {[%emt 0:03:05]} 26. Kh1 {[%emt 0:02:20]} Qe4 {[%emt 0:01:04]} 27. g6 {[%emt 0:17:19]} Nd3 {[%emt 0:02:32]} 28. Qg3 {[%emt 0:07:18]} Nf4 {[%emt 0:04:26]} 29. Qh2 {[%emt 0:05:32]} Qxg6 {[%emt 0:01:30]} 30. Rxd5 {[%emt 0:00:22]} Nxd5 {[%emt 0:01:43]} 31. Bxc4 {[%emt 0:00:27]} Rf4 {[%emt 0:13:45]} 32. Bb3 {[%emt 0:00:29]} Qf5 {[%emt 0:07:24]} 33. Rd1 {[%emt 0:05:01]} e4 {[%emt 0:00:30]} 34. Ng1 {[%emt 0:01:03]} Rf1 {[%emt 0:04:29]} 35. Rxf1 {[%emt 0:04:15]} Qxf1 {[%emt 0:00:05]} 36. Qe5 {[%emt 0:01:51]} Qf7 {[%emt 0:00:06]} 37. c4 {[%emt 0:00:10]} Nf6 {[%emt 0:00:32]} 38. c5 {[%emt 0:00:08]} Nd5 {[%emt 0:00:16]} 39. c6 {[%emt 0:00:07]} Kf8 {[%emt 0:00:28]} 40. Qh2 {[%emt 0:03:10]} Qc7 {[%emt 0:07:39]} 41. Qh8+ {[%emt 0:00:23]} Kf7 {[%emt 0:00:15]} 42. Qh5+ {[%emt 0:00:08]} Ke6 {[%emt 0:00:12]} 43. Ne2 {[%emt 0:00:21]} Qe5 {[%emt 0:00:58]} 44. Qh4 {[%emt 0:03:21]} Rf8 {[%emt 0:01:12]} 45. c7 {[%emt 0:01:10]} Kd7 {[%emt 0:02:39]} 46. Kg1 {[%emt 0:03:50]} Nxc7 {[%emt 0:01:07]} 1/2-1/2